bitfinex-derivatives/quotes_BTCF0:USTF0_20250924
["timestamp","ask_amount","ask_price","bid_price","bid_amount"]
[1758680826597,0.84661,112190.0,112180.0,0.9020032]
[1758680828201,0.02961,112190.0,112180.0,0.9020032]
[1758680828406,0.84657,112190.0,112180.0,0.9020032]
[1758680829502,0.84657,112190.0,112180.0,1.10951052]
[1758680830003,0.84657,112190.0,112180.0,0.85781838]
[1758680830203,0.84657,112190.0,112180.0,1.10951052]
[1758680830406,0.84657,112190.0,112180.0,0.85781838]
[1758680830604,0.84657,112190.0,112180.0,1.10951052]
[1758680833406,0.84657,112190.0,112180.0,0.74871052]
[1758680835305,0.84657,112190.0,112180.0,0.90911206]
[1758680835504,0.84657,112190.0,112180.0,0.70160474]
[1758680836109,0.84657,112190.0,112180.0,1.06240474]
[1758680837706,0.02961,112190.0,112180.0,1.06240474]
[1758680837908,0.84645,112190.0,112180.0,1.06240474]
[1758680840304,0.02961,112190.0,112180.0,1.06240474]
[1758680840505,0.84641,112190.0,112180.0,1.06240474]
[1758680841109,0.82441,112190.0,112180.0,1.06040474]
[1758680841413,0.02261,112190.0,112180.0,1.06240474]
[1758680841603,0.83741,112190.0,112180.0,1.06240474]
[1758680842710,0.83737,112190.0,112180.0,1.06240474]
[1758680843312,0.02061,112190.0,112180.0,1.06240474]
[1758680843513,0.83737,112190.0,112180.0,1.06240474]
[1758680845413,0.83633,112190.0,112180.0,1.06240474]
[1758680845815,0.83633,112190.0,112180.0,0.9020032]
[1758680846219,0.82133,112190.0,112180.0,0.9000032]
[1758680846410,0.82133,112190.0,112180.0,0.9010032]
[1758680846411,0.83333,112190.0,112180.0,0.9010032]
[1758680846909,0.83933,112190.0,112180.0,0.9020032]
[1758680847717,0.84033,112190.0,112180.0,0.9020032]
[1758680850626,0.84033,112190.0,112180.0,1.0624067]
[1758680853324,0.02361,112190.0,112180.0,1.0624067]
[1758680853619,0.73453,112190.0,112180.0,1.0624067]
[1758680853814,0.02361,112190.0,112180.0,1.0624067]
[1758680854013,0.8337,112190.0,112180.0,1.0624067]
[1758680854321,0.0195,112190.0,112180.0,1.0624067]
[1758680854517,0.82938,112190.0,112180.0,1.0624067]
[1758680854711,0.83606,112190.0,112180.0,1.0624067]
[1758680855017,0.0195,112190.0,112180.0,1.0624067]
[1758680855218,0.83606,112190.0,112180.0,1.0624067]
[1758680855420,0.84017,112190.0,112180.0,0.9020032]
[1758680858126,0.0195,112190.0,112180.0,0.9020032]
[1758680858420,0.83602,112190.0,112180.0,1.06239804]
[1758680858619,0.0195,112190.0,112180.0,1.06239804]
[1758680858916,0.0195,112190.0,112180.0,2.38219561]
[1758680859120,0.59466,112200.0,112190.0,0.37687114]
[1758680859321,0.59456,112200.0,112190.0,0.73767114]
[1758680859522,0.8371477,112210.0,112200.0,0.125171]
[1758680859824,0.8370477,112210.0,112200.0,1.04232834]
[1758680860218,0.8374477,112210.0,112200.0,1.13146681]
[1758680860619,0.8374477,112210.0,112200.0,1.1404096]
[1758680861021,0.8684477,112210.0,112200.0,1.1434096]
[1758680861526,0.8725577,112210.0,112200.0,0.89171746]
[1758680861726,0.8725577,112210.0,112200.0,1.1434096]
[1758680861914,0.8725577,112210.0,112200.0,1.13446681]
[1758680862113,0.8725577,112210.0,112200.0,0.92695949]
[1758680862526,0.85199,112210.0,112200.0,0.92695949]
[1758680862724,0.85599,112210.0,112200.0,0.92695949]
[1758680862925,0.85599,112210.0,112200.0,1.08709302]
[1758680863925,0.85599,112210.0,112200.0,0.92695949]
[1758680864329,0.85599,112210.0,112200.0,0.93609696]
[1758680864818,0.85188,112210.0,112200.0,0.93609696]
[1758680865624,0.85188,112210.0,112200.0,0.68440482]
[1758680865821,0.85599,112210.0,112200.0,0.67526735]
[1758680866124,0.85579,112210.0,112200.0,0.92695949]
[1758680866325,0.85579,112210.0,112200.0,0.57810947]
[1758680868526,1.25579,112210.0,112200.0,0.57810947]
[1758680871220,1.7056731,112210.0,112200.0,0.21730947]
[1758680871927,1.95736524,112210.0,112200.0,0.21730947]
[1758680873025,1.7056731,112210.0,112200.0,0.21730947]
[1758680875625,1.95736524,112210.0,112200.0,0.128171]
[1758680875822,1.95736524,112210.0,112200.0,0.25222453]
[1758680876133,1.95736524,112210.0,112200.0,0.26529453]
[1758680877829,1.95736524,112210.0,112200.0,0.16313353]
[1758680878028,1.95746524,112210.0,112200.0,0.16313353]
[1758680878227,1.95746524,112210.0,112200.0,0.003]
[1758680879028,1.95746524,112210.0,112200.0,0.16313353]
[1758680879830,1.95746524,112210.0,112200.0,0.003]
[1758680880632,1.98893995,112210.0,112200.0,0.003]
[1758680884025,1.4558268,112210.0,112200.0,0.003]
[1758680884227,4.1486268,112210.0,112200.0,0.003]
[1758680884428,1.4558268,112210.0,112200.0,0.003]
[1758680884630,4.1486268,112210.0,112200.0,0.003]
[1758680885029,1.4558268,112210.0,112200.0,0.003]
[1758680885232,4.1486268,112210.0,112200.0,0.003]
[1758680885830,4.1486668,112210.0,112200.0,0.003]
[1758680887437,4.1486268,112210.0,112200.0,0.003]
[1758680889738,4.4145268,112210.0,112200.0,0.003]
[1758680890339,1.7217268,112210.0,112200.0,0.003]
[1758680890538,4.4145668,112210.0,112200.0,0.003]
[1758680891749,1.7217268,112210.0,112200.0,0.003]
[1758680891936,4.4145668,112210.0,112200.0,0.003]
[1758680892342,1.7217268,112210.0,112200.0,0.003]
[1758680892941,4.4145668,112210.0,112200.0,0.003]
[1758680895643,4.1486668,112210.0,112200.0,0.003]
[1758680896244,3.5823331,112210.0,112200.0,0.003]
[1758680896436,4.1486668,112210.0,112200.0,0.003]
[1758680897935,4.1486268,112210.0,112200.0,0.003]
[1758680906847,1.4558268,112210.0,112200.0,0.003]
[1758680907042,4.1485468,112210.0,112200.0,0.003]
[1758680907643,1.4558268,112210.0,112200.0,0.003]
[1758680907849,4.1485468,112210.0,112200.0,0.003]
[1758680908240,3.86537995,112210.0,112200.0,0.003]
[1758680908647,4.1485468,112210.0,112200.0,0.003]
[1758680909247,1.4558268,112210.0,112200.0,0.003]
[1758680909449,3.86533995,112210.0,112200.0,0.003]
[1758680910648,1.17265995,112210.0,112200.0,0.003]
[1758680910842,3.86533995,112210.0,112200.0,0.003]
[1758680912044,3.86533995,112210.0,112200.0,0.03775]
[1758680912045,0.4894931,112210.0,112200.0,0.03775]
[1758680912252,0.77225995,112210.0,112200.0,0.03775]
[1758680912452,1.58821995,112210.0,112200.0,0.03775]
[1758680913042,1.58817995,112210.0,112200.0,0.03775]
[1758680913244,1.58817995,112210.0,112200.0,0.1268411]
[1758680913750,0.77265995,112210.0,112200.0,0.1268411]
[1758680913947,1.21593,112210.0,112200.0,0.81000795]
[1758680914156,1.49909685,112210.0,112200.0,0.81000795]
[1758680914453,1.49869685,112210.0,112200.0,0.97014148]
[1758680914754,1.49909685,112210.0,112200.0,0.97014148]
[1758680914953,0.40041,112210.0,112200.0,0.97014148]
[1758680915250,1.49909685,112210.0,112200.0,0.97014148]
[1758680915550,1.21593,112210.0,112200.0,0.97014148]
[1758680915750,1.49905685,112210.0,112200.0,0.97014148]
[1758680916250,1.13825685,112210.0,112200.0,0.97014148]
[1758680916851,1.13825685,112210.0,112200.0,0.68697463]
[1758680917056,1.13825685,112210.0,112200.0,0.97014148]
[1758680917253,1.22733995,112210.0,112200.0,0.97014148]
[1758680917654,0.41185995,112210.0,112200.0,0.97014148]
[1758680917855,1.22729995,112210.0,112200.0,0.97014148]
[1758680918448,1.22729995,112210.0,112200.0,0.81000795]
[1758680919550,1.22729995,112210.0,112200.0,0.41000795]
[1758680919747,1.58809995,112210.0,112200.0,0.03775]
[1758680919946,1.58809995,112210.0,112200.0,0.01658]
[1758680920152,1.58809995,112210.0,112200.0,0.003]
[1758680920455,1.58809995,112210.0,112200.0,0.126841]
[1758680921654,0.77265995,112210.0,112200.0,0.126841]
[1758680921855,1.58801995,112210.0,112200.0,0.126841]
[1758680922355,1.58797995,112210.0,112200.0,0.126841]
[1758680923757,1.3048131,112210.0,112200.0,0.126841]
[1758680923958,1.58793995,112210.0,112200.0,0.126841]
[1758680925658,0.77265995,112210.0,112200.0,0.126841]
[1758680925953,1.58789995,112210.0,112200.0,0.126841]
[1758680926154,1.58749995,112210.0,112200.0,0.126841]
[1758680926760,1.58789995,112210.0,112200.0,0.126841]
[1758680927159,0.77265995,112210.0,112200.0,0.126841]
[1758680927454,0.77265995,112210.0,112200.0,0.81000785]
[1758680927658,1.58745995,112210.0,112200.0,0.81000785]
[1758680927858,1.58785995,112210.0,112200.0,0.81000785]
[1758680928158,1.58745995,112210.0,112200.0,0.97014138]
[1758680928358,1.58785995,112210.0,112200.0,0.97014138]
[1758680928855,0.68357685,112210.0,112200.0,0.97014138]
[1758680929061,0.68357685,112210.0,112200.0,1.05926396]
[1758680929062,0.3963,112210.0,112200.0,1.05926396]
[1758680929361,1.2111,112210.0,112200.0,1.05926396]
[1758680929761,1.2115,112210.0,112200.0,1.05926396]
[1758680931057,0.3963,112210.0,112200.0,1.05926396]
[1758680931263,1.21146,112210.0,112200.0,1.05926396]
[1758680931460,1.21557,112210.0,112200.0,0.89913043]
[1758680932459,0.0355,112210.0,112200.0,0.89913043]
[1758680932661,0.0355,112210.0,112200.0,1.64350566]
[1758680932863,0.75722,112210.0,112200.0,1.64350566]
[1758680933060,0.75682,112210.0,112200.0,1.80363919]
[1758680933464,0.75722,112210.0,112200.0,1.80363919]
[1758680934369,0.75722,112210.0,112200.0,1.81242876]
[1758680935169,0.0355,112210.0,112200.0,1.81242876]
[1758680935465,0.71302,112210.0,112200.0,1.80363919]
[1758680935856,0.0355,112210.0,112200.0,1.80363919]
[1758680936366,0.77766,112210.0,112200.0,1.80363919]
[1758680936970,0.77366,112210.0,112200.0,1.80363919]
[1758680937165,0.77466,112210.0,112200.0,1.80363919]
[1758680938176,0.75066,112210.0,112200.0,1.80063919]
[1758680939277,0.0085,112210.0,112200.0,1.80063919]
[1758680940577,0.0085,112210.0,112200.0,1.73735497]
[1758680941076,0.0085,112210.0,112200.0,1.57722144]
[1758680941275,0.0001,112220.0,112210.0,0.1244831]
[1758680941471,0.81582,112230.0,112220.0,0.1244752]
[1758680941669,0.81492,112230.0,112220.0,0.37599994]
[1758680941874,0.81532,112230.0,112220.0,0.46511458]
[1758680942670,0.82732,112230.0,112220.0,0.46511458]
[1758680942975,0.82728,112230.0,112220.0,0.46511458]
[1758680943366,0.83028,112230.0,112220.0,0.46511458]
[1758680943564,0.83028,112230.0,112220.0,0.53534855]
[1758680944376,0.0154,112230.0,112220.0,0.53534855]
[1758680944579,0.83024,112230.0,112220.0,0.53534855]
[1758680945386,0.83024,112230.0,112220.0,0.89614855]
[1758680947377,1e-07,112230.0,112220.0,1.39009932]
[1758680947576,1e-07,112230.0,112220.0,1.55023285]
[1758680948374,0.0004001,112230.0,112220.0,1.55023285]
[1758680949078,0.0004001,112230.0,112220.0,1.39009932]
[1758680950383,0.0004001,112230.0,112220.0,1.54981821]
[1758680951387,0.0004001,112230.0,112220.0,1.29829347]
[1758680951577,0.0004001,112230.0,112220.0,1.54981821]
[1758680952685,0.0004001,112230.0,112220.0,1.39009932]
[1758680953584,1e-07,112230.0,112220.0,1.39009932]
[1758680953887,0.0004001,112230.0,112220.0,1.39009932]
[1758680955085,0.0004,112230.0,112220.0,1.39009932]
[1758680955281,0.0004,112230.0,112220.0,1.40509932]
[1758680956782,0.0008,112250.0,112240.0,0.1233993]
[1758680956984,0.0008,112250.0,112240.0,0.98724878]
[1758680957184,0.78679,112260.0,112250.0,0.03434]
[1758680957378,0.78759,112260.0,112250.0,0.28586474]
[1758680957686,0.78759,112260.0,112250.0,0.1022813]
[1758680957687,1.88895814,112260.0,112250.0,0.1022813]
[1758680958085,1.89810496,112260.0,112250.0,0.1247113]
[1758680958986,1.90410496,112260.0,112250.0,0.1247113]
[1758680960089,1.90410496,112260.0,112250.0,0.1022813]
[1758680960386,1.90420496,112260.0,112250.0,0.0890513]
[1758680962890,0.0931614,112250.0,112240.0,0.1249193]
[1758680963088,1.52002614,112250.0,112240.0,0.1247193]
[1758680964288,1.52002614,112250.0,112240.0,0.1277193]
[1758680964481,0.70558614,112250.0,112240.0,0.1277193]
[1758680964681,1.52002614,112250.0,112240.0,0.1277193]
[1758680964882,1.52202614,112250.0,112240.0,0.1277193]
[1758680966293,1.52002614,112250.0,112240.0,0.1277193]
[1758680966492,0.4560614,112250.0,112240.0,0.1277193]
[1758680966692,1.2704614,112250.0,112240.0,0.1277193]
[1758680966893,1.52198614,112250.0,112240.0,0.1277193]
[1758680967093,1.2704614,112250.0,112240.0,0.1277193]
[1758680968595,1.52198614,112250.0,112240.0,0.1277193]
[1758680968993,1.2704614,112250.0,112240.0,0.1277193]
[1758680969193,1.51998614,112250.0,112240.0,0.1277193]
[1758680969494,1.52198614,112250.0,112240.0,0.1277193]
[1758680969693,1.2704614,112250.0,112240.0,0.1277193]
[1758680969886,0.4560614,112250.0,112240.0,0.1277193]
[1758680970091,1.18141,112250.0,112240.0,0.1277193]
[1758680970697,0.36701,112250.0,112240.0,0.1277193]
[1758680970997,1.18137,112250.0,112240.0,0.1277193]
[1758680971199,1.2704213,112250.0,112240.0,0.1277193]
[1758680974598,1.2703813,112250.0,112240.0,0.1277193]
[1758680977599,1.52190604,112250.0,112240.0,0.1277193]
[1758680978207,1.2703813,112250.0,112240.0,0.1277193]
[1758680978807,0.4560613,112250.0,112240.0,0.1277193]
[1758680979105,1.2703413,112250.0,112240.0,0.1277193]
[1758680984514,0.4560613,112250.0,112240.0,0.1277193]
[1758680984701,1.18121,112250.0,112240.0,0.1277193]
[1758680985814,1.18121,112250.0,112240.0,0.46833486]
[1758680986609,1.18121,112250.0,112240.0,0.21681012]
[1758680986917,1.2706614,112250.0,112240.0,0.21681012]
[1758680987220,1.18161,112250.0,112240.0,0.21681012]
[1758680990717,1.2706614,112250.0,112240.0,0.21681012]
[1758680991817,1.18161,112250.0,112240.0,0.21681012]
[1758680992920,1.2706614,112250.0,112240.0,0.21681012]
[1758680993715,8e-08,112250.0,112240.0,1.1198596]
[1758680993920,1e-07,112260.0,112250.0,0.1254014]
[1758680994122,0.4052,112270.0,112260.0,0.1253934]
[1758680994310,0.36491,112290.0,112280.0,0.1253776]
[1758680994514,0.36491,112290.0,112280.0,0.37690234]
[1758680994719,1.18782844,112290.0,112280.0,0.37690234]
[1758680994921,0.00451,112290.0,112280.0,0.37690234]
[1758680995114,0.81815,112290.0,112280.0,0.46596143]
[1758680995718,0.81855,112290.0,112280.0,0.46596143]
[1758680995915,0.00911,112290.0,112280.0,0.82676143]
[1758680996117,0.01851,112290.0,112280.0,0.98648032]
[1758680996313,0.77251,112290.0,112280.0,0.98648032]
[1758680996817,0.83211,112290.0,112280.0,0.98648032]
[1758680997020,0.83251,112290.0,112280.0,0.82676143]
[1758680997220,0.83211,112290.0,112280.0,0.82676143]
[1758680997421,0.83251,112290.0,112280.0,0.82676143]
[1758680998221,0.83251,112290.0,112280.0,0.89790502]
[1758680999125,0.82832,112290.0,112280.0,1.29790502]
[1758680999321,0.0144,112290.0,112280.0,1.29790502]
[1758680999522,0.82832,112290.0,112280.0,1.29790502]
[1758680999924,0.0144,112290.0,112280.0,1.29790502]
[1758681000118,0.82788,112290.0,112280.0,1.29790502]
[1758681000319,0.82828,112290.0,112280.0,1.29790502]
[1758681001121,0.0144,112290.0,112280.0,1.29790502]
[1758681001323,0.57308,112290.0,112280.0,1.29790502]
[1758681001523,0.0144,112290.0,112280.0,1.29790502]
[1758681001724,0.82784,112290.0,112280.0,1.29790502]
[1758681001924,0.82824,112290.0,112280.0,1.29790502]
[1758681002327,0.0144,112290.0,112280.0,1.29790502]
[1758681002627,0.8282,112290.0,112280.0,1.6115276]
[1758681006318,0.8192,112290.0,112280.0,1.6175276]
[1758681006525,0.0054,112290.0,112280.0,1.6175276]
[1758681006726,0.81908,112290.0,112280.0,1.6175276]
[1758681006928,0.81408,112290.0,112280.0,1.6175276]
[1758681007925,0.0004,112290.0,112280.0,1.6175276]
[1758681008131,0.81364,112300.0,112290.0,0.1253696]
[1758681008331,0.81364,112300.0,112290.0,1.05131692]
[1758681008825,0.36571,112310.0,112300.0,0.1253617]
[1758681009031,1.17931,112310.0,112300.0,0.40793536]
[1758681009329,1.17851,112310.0,112300.0,0.40793536]
[1758681009525,1.17851,112310.0,112300.0,0.49698651]
[1758681009726,0.36531,112310.0,112300.0,0.49698651]
[1758681009926,1.17891,112310.0,112300.0,0.49698651]
[1758681010131,1.17887,112310.0,112300.0,0.49698651]
[1758681010435,0.81807,112310.0,112300.0,0.49698651]
[1758681010635,0.81767,112310.0,112300.0,0.49698651]
[1758681010836,0.81807,112310.0,112300.0,0.49698651]
[1758681011342,0.00751,112310.0,112300.0,0.49698651]
[1758681011540,0.82607,112310.0,112300.0,0.49698651]
[1758681011842,0.82192,112310.0,112300.0,0.49698651]
[1758681012043,0.82192,112310.0,112300.0,0.85778651]
[1758681012243,0.82152,112310.0,112300.0,1.25778651]
[1758681012432,0.82192,112310.0,112300.0,1.25778651]
[1758681013136,0.0084,112310.0,112300.0,1.25778651]
[1758681013332,0.82188,112310.0,112300.0,1.25778651]
[1758681014544,0.7943594,112310.0,112300.0,1.25778651]
[1758681015339,0.7943594,112310.0,112300.0,0.97521285]
[1758681015541,0.7943594,112310.0,112300.0,1.25778651]
[1758681017542,0.7943594,112310.0,112300.0,1.35752479]
[1758681020843,0.81338,112320.0,112310.0,0.1251938]
[1758681021037,0.02143539,112330.0,112310.0,1.05114112]
[1758681021243,0.83882539,112330.0,112320.0,0.69033322]
[1758681021438,0.83872539,112330.0,112320.0,0.76097451]
[1758681021638,0.83792539,112330.0,112320.0,0.76097451]
[1758681021843,0.83832539,112330.0,112320.0,0.55662719]
[1758681022042,0.83832539,112330.0,112320.0,1.21080188]
[1758681022343,0.84532539,112330.0,112320.0,1.21080188]
[1758681023448,0.85132539,112330.0,112320.0,1.21080188]
[1758681024140,0.85132539,112330.0,112320.0,0.92822822]
[1758681024342,0.84432539,112330.0,112320.0,0.92822822]
[1758681024537,0.85732539,112330.0,112320.0,0.92822822]
[1758681024939,0.9257779,112330.0,112320.0,0.56742822]
[1758681025150,1.2865779,112330.0,112320.0,0.28485456]
[1758681025339,1.2865779,112330.0,112320.0,0.56742822]
[1758681025540,1.96915156,112330.0,112320.0,0.56742822]
[1758681025749,1.96915156,112330.0,112320.0,0.28485456]
[1758681025949,0.78431,112330.0,112320.0,0.56742822]
[1758681026143,1.96907156,112330.0,112320.0,0.56742822]
[1758681026448,1.96907156,112330.0,112320.0,0.28485456]
[1758681026649,1.96907156,112330.0,112320.0,0.56742822]
[1758681027649,1.15587156,112330.0,112320.0,0.56742822]
[1758681027948,1.96907156,112330.0,112320.0,0.56742822]
[1758681029052,1.96907156,112330.0,112320.0,0.45564085]
[1758681029552,1.96907156,112330.0,112320.0,0.47840085]
[1758681029939,1.96907156,112330.0,112320.0,0.19582719]
[1758681030343,1.96907156,112330.0,112320.0,0.17306719]
[1758681030642,1.96907156,112330.0,112320.0,0.15963719]
[1758681031454,1.15587156,112330.0,112320.0,0.15963719]
[1758681031639,1.96899156,112330.0,112320.0,0.15963719]
[1758681031949,1.96899156,112330.0,112320.0,0.19582719]
[1758681032151,1.15587156,112330.0,112320.0,0.47840085]
[1758681032350,1.96899156,112330.0,112320.0,0.47840085]
[1758681032752,1.96899156,112330.0,112320.0,0.19582719]
[1758681032949,1.96899156,112330.0,112320.0,0.47840085]
[1758681034947,1.96899156,112330.0,112320.0,0.17306719]
[1758681035150,0.0889959,112320.0,112310.0,0.40786196]
[1758681035353,0.73647956,112320.0,112310.0,0.40776196]
[1758681035548,0.73647956,112320.0,112310.0,0.21421567]
[1758681035753,0.73647956,112320.0,112310.0,0.49678933]
[1758681036456,0.74047956,112320.0,112310.0,0.49678933]
[1758681037554,0.74747956,112320.0,112310.0,0.49678933]
[1758681037760,1.56055956,112320.0,112310.0,0.49678933]
[1758681038556,0.37591,112320.0,112310.0,0.49678933]
[1758681038758,1.18899,112320.0,112310.0,0.49678933]
[1758681039260,0.82819,112320.0,112310.0,0.49678933]
[1758681039957,0.01511,112320.0,112310.0,0.49678933]
[1758681040157,0.82819,112320.0,112310.0,0.49678933]
[1758681041159,0.9171858,112320.0,112310.0,0.49678933]
[1758681041954,0.9171858,112320.0,112310.0,0.21421567]
[1758681042153,0.9171858,112320.0,112310.0,0.49678933]
[1758681042361,1.19975946,112320.0,112310.0,0.60853914]
[1758681042564,0.9171858,112320.0,112310.0,0.60853914]
[1758681043964,1.56055946,112320.0,112310.0,0.32596548]
[1758681044152,1.56055946,112320.0,112310.0,0.60853914]
[1758681045065,1.56055946,112320.0,112310.0,0.32596548]
[1758681045261,1.56055946,112320.0,112310.0,0.60853914]
[1758681045958,1.56055946,112320.0,112310.0,0.32597098]
[1758681046263,1.56055946,112320.0,112310.0,0.1251938]
[1758681046463,1.2779858,112320.0,112310.0,0.1251938]
[1758681046665,1.56055946,112320.0,112310.0,0.1251938]
[1758681047454,1.56055946,112320.0,112310.0,0.40776746]
[1758681047659,1.56055946,112320.0,112310.0,0.1251938]
[1758681047858,1.56055946,112320.0,112310.0,0.1024338]
[1758681048062,1.96055946,112320.0,112310.0,0.1024338]
[1758681048568,1.96055946,112320.0,112310.0,0.1246638]
[1758681050770,1.96055946,112320.0,112310.0,0.40723746]
[1758681051875,1.96055946,112320.0,112310.0,0.56695635]
[1758681052867,1.96055946,112320.0,112310.0,0.28438269]
[1758681053068,0.8649058,112320.0,112310.0,0.56695635]
[1758681053266,0.01511,112320.0,112310.0,0.65599165]
[1758681053572,0.82815,112320.0,112310.0,0.49627276]
[1758681053770,0.82815,112320.0,112310.0,0.50504358]
[1758681053970,0.82855,112320.0,112310.0,0.50504358]
[1758681054674,0.82855,112320.0,112310.0,0.49627276]
[1758681055378,0.82855,112320.0,112310.0,0.65635677]
[1758681055779,0.9175459,112320.0,112310.0,0.65635677]
[1758681056275,0.82855,112320.0,112310.0,0.49627276]
[1758681057172,0.82855,112320.0,112310.0,0.2136991]
[1758681057374,0.9175459,112320.0,112310.0,0.49627276]
[1758681057569,1.2783459,112320.0,112310.0,0.49627276]
[1758681057778,1.56091956,112320.0,112310.0,0.49627276]
[1758681058476,0.74787956,112320.0,112310.0,0.49627276]
[1758681058677,1.56091956,112320.0,112310.0,0.65635677]
[1758681061278,1.2783459,112320.0,112310.0,0.49627276]
[1758681063576,1.56091956,112320.0,112310.0,0.49627276]
[1758681064581,1.2783459,112320.0,112310.0,0.2136991]
[1758681065082,1.2783459,112320.0,112310.0,0.37378311]
[1758681066985,1.2783459,112320.0,112310.0,0.26251781]
[1758681067287,1.2783459,112320.0,112310.0,0.28474781]
[1758681068480,0.37631,112320.0,112310.0,0.62491698]
[1758681068684,0.82811,112320.0,112310.0,0.62491698]
[1758681068874,0.82851,112320.0,112310.0,0.62491698]
[1758681069078,0.82811,112320.0,112310.0,0.62491698]
[1758681069387,0.82851,112320.0,112310.0,0.62491698]
[1758681069980,0.01551,112320.0,112310.0,0.62491698]
[1758681070178,0.82851,112320.0,112310.0,0.62491698]
[1758681071085,0.01551,112320.0,112310.0,0.62491698]
[1758681071284,0.82851,112320.0,112310.0,0.62491698]
[1758681071583,0.01551,112320.0,112310.0,0.62491698]
[1758681071785,0.82851,112320.0,112310.0,0.62491698]
[1758681071985,0.01551,112320.0,112310.0,0.62491698]
[1758681072187,0.82811,112320.0,112310.0,0.62491698]
[1758681072483,0.01551,112320.0,112310.0,0.46483297]
[1758681072974,0.0114,112320.0,112310.0,0.46483297]
[1758681073174,0.824,112320.0,112310.0,0.46483297]
[1758681073781,0.8244,112320.0,112310.0,0.82563297]
[1758681073980,0.8244,112320.0,112310.0,1.22563297]
[1758681074174,0.824,112320.0,112310.0,1.22563297]
[1758681074680,0.8244,112320.0,112310.0,1.22563297]
[1758681079281,0.82851,112320.0,112310.0,0.9744991]
[1758681079489,0.82851,112320.0,112310.0,1.22563297]
[1758681080984,0.8244,112320.0,112310.0,1.22563297]
[1758681081189,0.8244,112320.0,112310.0,1.38572157]
[1758681081487,0.0114,112320.0,112310.0,1.38572157]
[1758681081786,0.82432,112320.0,112310.0,1.38572157]
[1758681081987,0.82432,112320.0,112310.0,1.22563297]
[1758681082187,0.82432,112320.0,112310.0,1.38571103]
[1758681084301,0.0114,112320.0,112310.0,1.38571103]
[1758681084508,0.55272,112320.0,112310.0,1.38571103]
[1758681084700,0.011,112320.0,112310.0,1.38571103]
[1758681085008,0.0114,112320.0,112310.0,1.38571103]
[1758681092008,0.0114,112320.0,112310.0,1.22563297]
[1758681093510,0.0114,112320.0,112310.0,1.38571103]
[1758681094205,0.0004,112320.0,112310.0,1.38571103]
[1758681094410,0.0004,112320.0,112310.0,1.39571103]
[1758681094612,0.0004,112320.0,112310.0,1.75651103]
[1758681097517,0.0004,112320.0,112310.0,1.59643297]
[1758681099416,0.0004,112320.0,112310.0,1.19643297]
[1758681100011,0.0004,112320.0,112310.0,1.35651103]
[1758681100821,0.0004,112320.0,112310.0,1.19643297]
[1758681104018,0.0004,112320.0,112310.0,1.40394029]
[1758681104212,0.0001,112330.0,112320.0,0.1248859]
[1758681104417,0.32301,112340.0,112330.0,0.1248779]
[1758681104619,0.32291,112340.0,112330.0,0.37601177]
[1758681104917,0.32291,112340.0,112330.0,0.46504707]
[1758681106316,0.41189,112340.0,112330.0,0.46504707]
[1758681106621,0.41589,112340.0,112330.0,0.46504707]
[1758681106922,0.32691,112340.0,112330.0,0.46504707]
[1758681108923,0.00891,112340.0,112330.0,0.46504707]
[1758681109125,0.82155,112340.0,112330.0,0.46504707]
[1758681110629,0.91053,112340.0,112330.0,0.46504707]
[1758681111922,0.82155,112340.0,112330.0,0.46504707]
[1758681112827,0.91053,112340.0,112330.0,0.46504707]
[1758681113026,1.27133,112340.0,112330.0,0.1249253]
[1758681113230,1.27133,112340.0,112330.0,0.2139132]
[1758681114028,1.27133,112340.0,112330.0,0.37398795]
[1758681117426,1.92246387,112340.0,112330.0,0.26239265]
[1758681117624,1.92246387,112340.0,112330.0,0.24906265]
[1758681117824,1.92246387,112340.0,112330.0,0.19550475]
[1758681118029,1.92246387,112340.0,112330.0,0.26290265]
[1758681118428,1.92246387,112340.0,112330.0,0.28449265]
[1758681118626,1.92246387,112340.0,112330.0,0.26290265]
[1758681118822,1.92246387,112340.0,112330.0,0.23655119]
[1758681119032,0.0930979,112330.0,112320.0,0.20760732]
[1758681119332,0.70503177,112330.0,112320.0,0.20750732]
[1758681119626,0.70503177,112330.0,112310.0,0.0001]
[1758681119627,0.0889959,112320.0,112310.0,0.0001]
[1758681119929,0.0931138,112310.0,112300.0,0.27073986]
[1758681120124,0.71383471,112310.0,112300.0,0.27063986]
[1758681120325,0.46270084,112310.0,112300.0,0.27063986]
[1758681120632,1.52631471,112310.0,112300.0,0.1243517]
[1758681121027,0.45870084,112310.0,112300.0,0.1243517]
[1758681121432,1.27118084,112310.0,112300.0,0.1243517]
[1758681121632,1.52231471,112310.0,112300.0,0.1343517]
[1758681121934,1.52231471,112310.0,112300.0,0.1363517]
[1758681122131,1.52231471,112310.0,112300.0,0.01575]
[1758681122433,1.52331471,112310.0,112300.0,0.01575]
[1758681122625,1.52331471,112310.0,112300.0,0.01375]
[1758681122820,1.52631471,112310.0,112300.0,0.01375]
[1758681123025,1.52635471,112310.0,112300.0,0.1243517]
[1758681123540,1.52335471,112310.0,112300.0,0.1243517]
[1758681123731,1.53635471,112310.0,112300.0,0.1243517]
[1758681123920,0.72383471,112310.0,112300.0,0.1243517]
[1758681124125,1.53635471,112310.0,112300.0,0.1243517]
[1758681126533,1.56784412,112310.0,112300.0,0.1243517]
[1758681128728,1.28522084,112310.0,112300.0,0.1243517]
[1758681128925,1.55909708,112310.0,112300.0,0.40697498]
[1758681129732,0.74653708,112310.0,112300.0,0.40697498]
[1758681129930,1.55909708,112310.0,112300.0,0.40697498]
[1758681130633,0.0931217,112300.0,112290.0,0.23629323]
[1758681130837,0.73654498,112300.0,112290.0,0.51881651]
[1758681131043,0.73654498,112300.0,112290.0,0.60785974]
[1758681131235,0.73654498,112300.0,112290.0,0.14717943]
[1758681131435,0.73654498,112300.0,112290.0,0.12558943]
[1758681131637,1.13654498,112300.0,112290.0,0.11174943]
[1758681131838,0.0931297,112290.0,112280.0,0.11184943]
[1758681132033,1.83173626,112290.0,112280.0,0.11174943]
[1758681132227,0.0890276,112280.0,112270.0,0.0001]
[1758681132537,0.0931455,112270.0,112260.0,0.12568943]
[1758681132837,0.73913878,112270.0,112260.0,0.11174943]
[1758681133037,1.55169878,112270.0,112260.0,0.11174943]
[1758681133433,0.0890434,112260.0,112250.0,0.52002931]
[1758681133635,0.73657668,112260.0,112250.0,0.51992931]
[1758681133837,0.73657668,112260.0,112250.0,0.49725483]
[1758681134337,1.54813668,112260.0,112250.0,0.49725483]
[1758681134835,1.54613668,112260.0,112250.0,0.58731771]
[1758681135035,0.64753328,112260.0,112250.0,0.42718468]
[1758681135240,1.54917668,112260.0,112250.0,0.42718468]
[1758681135639,1.54917668,112260.0,112250.0,0.1475614]